{"text_format":"1","workbook":"xlsx","n_sheets":14,"sheets":["1.1 Planeamento Escolar","1.2 Versão base do Otimizador","2.1 f(x)","2.2 abc()","2.3 VB Dado","2.4 FRamos","2.5 Somar","3.1 Macro1","3.2 Macro2"," 3.3 Macro3 - Repetição"," 3.3 Macro3 - T2"," 3.3 Macro3 - T3"," 3.3 Macro3 - T4"," 3.3 Macro3 - T5"],"not_rendered":{"charts":0,"images":5,"macros":1,"external_links":0,"defined_names":50,"comments":0,"pivot_tables":0},"unopened":[],"bounds":{"document_bytes":16777216,"sheet_cells":100000,"rows_first":2000,"rows_last":500,"rows_between":2000,"halvings":0,"cell_chars":16384,"cell_head_chars":4096},"cells_cut":0,"cells_raw":0,"read":"whole","date_system":"1900"}

{"sheet":"1.1 Planeamento Escolar","index":0,"n_rows":0,"n_cols":0,"rows_kept":0,"cut":false,"hidden":false,"merged":[]}

{"sheet":"1.2 Versão base do Otimizador","index":1,"n_rows":21,"n_cols":7,"rows_kept":21,"cut":false,"hidden":false,"merged":[[0,3,0,4],[1,3,1,4],[1,6,1,7]]}
[null,null,null,"Variáveis do problema"]
[null,null,null,"Células a programar",null,null,"Célula a otimizar"]
[null,null,null,"Nº total","Rendimento"]
[null,null,null,"de horas","escolar"]
[null,null,null,"a estudar","obtido"]
[null,null,"Economia Internacional",1]
[null,null,"Mandarim",1]
[null,null,"Castelhano",1]
[null,null,"Inglês",1]
[null,null,"Matemática",2]
[]
[null,null,null,{"$f":"SUM(D6:D10)","v":6}]
[]
[null,null,"Nº total de horas <= 10h",{"$f":"D12","v":6},10]
[null,null,"Nº tot. h Línguas <= 4 h",{"$f":"SUM(D7:D9)","v":3},4]
[null,null,"Nº tot. h Matemática >= 2h",{"$f":"D10","v":2},2]
[null,null,"Economia Internacional",{"$f":"+D6","v":1},0.5]
[null,null,"Mandarim",{"$f":"D7","v":1},0.5]
[null,null,"Castelhano",{"$f":"D8","v":1},0.5]
[null,null,"Inglês",1,0.5]
[null,null,null,null,"Min          Max"]

{"sheet":"2.1 f(x)","index":2,"n_rows":17,"n_cols":8,"rows_kept":17,"cut":false,"hidden":false,"merged":[]}
[]
[]
[]
[null,"Implemente em Visual Basic a Função: 2x^2 + 3x - 4"]
[]
[null,"x","f(x)"]
[null,-5,null,"=f(B7)",null,null,null,"=f(2,4)"]
[null,-4]
[null,-3]
[null,-2]
[null,-1]
[null,0]
[null,1]
[null,2]
[null,3]
[null,4]
[null,5]

{"sheet":"2.2 abc()","index":3,"n_rows":7,"n_cols":14,"rows_kept":7,"cut":false,"hidden":false,"merged":[]}
[]
[]
[null,"Implemente a função abc, que gera aleatoriamente a, b ou c com igual probabilidade"]
[]
[null,"abc()",null,null,null,null,null,null,null,null,null,null,"abc_2()"]
[null,null,"=abc()",null,null,null,null,null,null,null,null,null,null,"=abc_2()"]
[null,null,null,null,null,null,{"$f":"f(2.4)","v":14.719999999999999}]

{"sheet":"2.3 VB Dado","index":4,"n_rows":7,"n_cols":17,"rows_kept":7,"cut":false,"hidden":false,"merged":[]}
[]
[]
[]
[]
[]
[]
[null,"=dado1()",null,null,null,null,null,null,"=dado2()",null,null,null,null,null,null,null,"=dado3()"]

{"sheet":"2.4 FRamos","index":5,"n_rows":32,"n_cols":33,"rows_kept":32,"cut":false,"hidden":false,"merged":[]}
[]
[]
[null,"x","FRamos(x)",null,null,null,null,null,null,null,null,null,null,null,"x","FRamos2(x)",null,null,null,null,null,null,null,null,null,null,null,null,"x","FRamos3(x)"]
[null,4,null,"=FRamos(B4)",null,null,null,null,null,null,null,null,null,null,4,null,"=FRamos2(O4)",null,null,null,null,null,null,null,null,null,null,null,4,null,"=FRamos3(AC4)"]
[null,{"$f":"+B4+0.25","v":4.25},null,null,null,null,null,null,null,null,null,null,null,null,{"$f":"+O4+0.25","v":4.25},null,null,null,null,null,null,null,null,null,null,null,null,null,{"$f":"+AC4+0.25","v":4.25}]
[null,{"$f":"+B5+0.25","v":4.5},null,null,null,null,null,null,null,null,null,null,null,null,{"$f":"+O5+0.25","v":4.5},null,null,null,null,null,null,null,null,null,null,null,null,null,{"$f":"+AC5+0.25","v":4.5}]
[null,4.75,null,null,null,null,null,null,null,null,null,null,null,null,4.75,null,null,null,null,null,null,null,null,null,null,null,null,null,4.75]
[null,5,null,null,null,null,null,null,null,null,null,null,null,null,5,null,null,null,null,null,null,null,null,null,null,null,null,null,5]
[null,5.25,null,null,null,null,null,null,null,null,null,null,null,null,5.25,null,null,null,null,null,null,null,null,null,null,null,null,null,5.25,null,null,null,"NÃO DEFINIDA PARA X>=9"]
[null,5.5,null,null,null,null,null,null,null,null,null,null,null,null,5.5,null,null,null,null,null,null,null,null,null,null,null,null,null,5.5]
[null,5.75,null,null,null,null,null,null,null,null,null,null,null,null,5.75,null,null,null,null,null,null,null,null,null,null,null,null,null,5.75]
[null,6,null,null,null,null,null,null,null,null,null,null,null,null,6,null,null,null,null,null,null,null,null,null,null,null,null,null,6]
[null,6.25,null,null,null,null,null,null,null,null,null,null,null,null,6.25,null,null,null,null,null,null,null,null,null,null,null,null,null,6.25]
[null,6.5,null,null,null,null,null,null,null,null,null,null,null,null,6.5,null,null,null,null,null,null,null,null,null,null,null,null,null,6.5]
[null,6.75,null,null,null,null,null,null,null,null,null,null,null,null,6.75,null,null,null,null,null,null,null,null,null,null,null,null,null,6.75]
[null,7,null,null,null,null,null,null,null,null,null,null,null,null,7,null,null,null,null,null,null,null,null,null,null,null,null,null,7]
[null,7.25,null,null,null,null,null,null,null,null,null,null,null,null,7.25,null,null,null,null,null,null,null,null,null,null,null,null,null,7.25]
[null,7.5,null,null,null,null,null,null,null,null,null,null,null,null,7.5,null,null,null,null,null,null,null,null,null,null,null,null,null,7.5]
[null,7.75,null,null,null,null,null,null,null,null,null,null,null,null,7.75,null,null,null,null,null,null,null,null,null,null,null,null,null,7.75]
[null,8,null,null,null,null,null,null,null,null,null,null,null,null,8,null,null,null,null,null,null,null,null,null,null,null,null,null,8]
[null,8.25,null,null,null,null,null,null,null,null,null,null,null,null,8.25,null,null,null,null,null,null,null,null,null,null,null,null,null,8.25]
[null,8.5,null,null,null,null,null,null,null,null,null,null,null,null,8.5,null,null,null,null,null,null,null,null,null,null,null,null,null,8.5]
[null,8.75,null,null,null,null,null,null,null,null,null,null,null,null,8.75,null,null,null,null,null,null,null,null,null,null,null,null,null,8.75]
[null,9,null,null,null,null,null,null,null,null,null,null,null,null,9,null,null,null,null,null,null,null,null,null,null,null,null,null,9]
[null,9.25,null,null,null,null,null,null,null,null,null,null,null,null,9.25,null,null,null,null,null,null,null,null,null,null,null,null,null,9.25]
[null,9.5,null,null,null,null,null,null,null,null,null,null,null,null,9.5,null,null,null,null,null,null,null,null,null,null,null,null,null,9.5]
[null,9.75,null,null,null,null,null,null,null,null,null,null,null,null,9.75,null,null,null,null,null,null,null,null,null,null,null,null,null,9.75]
[null,10,null,null,null,null,null,null,null,null,null,null,null,null,10,null,null,null,null,null,null,null,null,null,null,null,null,null,10]
[null,10.25,null,null,null,null,null,null,null,null,null,null,null,null,10.25,null,null,null,null,null,null,null,null,null,null,null,null,null,10.25]
[null,10.5,null,null,null,null,null,null,null,null,null,null,null,null,10.5,null,null,null,null,null,null,null,null,null,null,null,null,null,10.5]
[null,10.75,null,null,null,null,null,null,null,null,null,null,null,null,10.75,null,null,null,null,null,null,null,null,null,null,null,null,null,10.75]
[null,11,null,null,null,null,null,null,null,null,null,null,null,null,11,null,null,null,null,null,null,null,null,null,null,null,null,null,11]

{"sheet":"2.5 Somar","index":6,"n_rows":12,"n_cols":22,"rows_kept":12,"cut":false,"hidden":false,"merged":[]}
[]
[null,"Somar1",null,"Somar2",null,"Somar3",null,null,null,"Somar 4",null,null,null,null,"Somar5",null,null,null,"Somar6"]
[null,"1 a 10",null,"1 a 100",null,"1 a Número Natural Qualquer",null,null,null,"30 a 100"]
[null,null,null,null,null,null,null,null,null,null,null,null,1,2,null,"=Somar5(M4,N4)",null,null,1,2,null,"=+Somar6(S4,T4)"]
[null,null,null,null,null,null,null,null,null,null,null,null,0,10,null,null,null,null,0,10]
[null,"=Somar1()",null,"=Somar2()",null,null,null,null,null,null,null,null,-1,1,null,null,null,null,-1,1]
[null,null,null,null,null,null,null,null,null,null,null,null,-5,25,null,null,null,null,-5,25]
[null,null,null,null,null,1,null,"=Somar3(F8)",null,null,null,null,3.6,4,null,null,null,null,3.6,4]
[null,null,null,null,null,2,null,null,null,"=Somar4()",null,null,0.5,0.8,null,null,null,null,0.5,0.8]
[null,null,null,null,null,5,null,null,null,null,null,null,10,1,null,null,null,null,10,1]
[null,null,null,null,null,10]
[null,null,null,null,null,100]

{"sheet":"3.1 Macro1","index":7,"n_rows":3,"n_cols":10,"rows_kept":3,"cut":false,"hidden":false,"merged":[]}
[]
[]
[null,null,null,null,null,null,null,null,null,"Aguarde as instruções do seu professor!"]

{"sheet":"3.2 Macro2","index":8,"n_rows":2,"n_cols":11,"rows_kept":2,"cut":false,"hidden":false,"merged":[]}
[]
[null,null,null,null,null,null,null,null,null,null,"Aguarde as instruções do seu professor!"]

{"sheet":" 3.3 Macro3 - Repetição","index":9,"n_rows":64,"n_cols":7,"rows_kept":64,"cut":false,"hidden":false,"merged":[]}
[]
[]
[1,"Transformar os \"F\" em zeros"]
[]
[2,"Calcular a Média dos três testes"]
[]
[3,"Formatar condicionalmente de forma a que as médias positivas apareçam a verde."]
[]
[4,"Calcular a nota final. Média inferior a 9,5 --> \"R\". Caso contrário, é o arredondamento às unidades da Média."]
[]
[5,"Formatar condicionalmente de forma a que as Reprovações apareçam a Vermelho"]
[]
[]
[null,"No final… Ordenar por Nº (Opcional)"]
[]
[null,"Pretende-se que elabore uma Macro que execute os passos de 1 a 5"]
[null,"Experimente a Macro nas restantes turmas."]
[null,"Use uma delas para teste!!!  Quando tudo estiver OK… Divirta-se!"]
[]
[null,"Nº","T1","T2","T3","Média","Nota Final"]
[null,80047,12.1,14.8,12.1]
[null,80148,8.1999999999999993,9.4,0]
[null,80180,13.6,13.3,13.8]
[null,80312,14.6,11,14.6]
[null,80595,0,15.4,13.1]
[null,80761,19.8,7.4,0]
[null,80922,0,8.1999999999999993,0]
[null,81015,18.100000000000001,17.100000000000001,19.100000000000001]
[null,81406,10.5,0,14.1]
[null,81454,11,13.6,14.1]
[null,81606,10.7,11.7,11.6]
[null,81644,10.8,12.6,14.8]
[null,81925,14.1,12.1,13.8]
[null,82209,12.8,12.7,14.3]
[null,82277,0,12.2,13.5]
[null,82333,12.7,12,12.7]
[null,82552,10.4,13.5,12.3]
[null,82862,13,11.6,15.1]
[null,82938,13.2,12,14.2]
[null,83143,19.5,19.3,18.899999999999999]
[null,83391,13.2,0,0]
[null,83762,12.7,12.4,0]
[null,83808,12.8,0,12.9]
[null,84087,8.1,7.9,0]
[null,84162,14,12.8,12.1]
[null,84372,10.8,13.6,10.7]
[null,84455,12.7,12.8,11.9]
[null,84773,0,12.6,14.5]
[null,84842,13,11.1,11.7]
[null,85226,13.6,13,12.8]
[null,85319,13.3,0,0]
[null,85395,13,0,11.3]
[null,85599,0,11.6,0]
[null,85833,11.9,0,0]
[null,85854,0,9.5,0]
[null,85992,0,14.4,12.9]
[null,86193,13.1,12,0]
[null,86821,10.9,12.7,0]
[null,87379,3.9,6.6,9.8000000000000007]
[null,88254,13.5,14.5,11.5]
[null,88898,13.1,13.1,14.4]
[null,89353,11.2,12,11.2]
[null,89676,0,13.5,10.8]
[null,89795,15.7,0,13.4]

{"sheet":" 3.3 Macro3 - T2","index":10,"n_rows":64,"n_cols":7,"rows_kept":64,"cut":false,"hidden":false,"merged":[]}
[]
[]
[1,"Transformar os \"F\" em zeros"]
[]
[2,"Calcular a Média dos três testes"]
[]
[3,"Formatar condicionalmente de forma a que as médias positivas apareçam a verde."]
[]
[4,"Calcular a nota final. Média inferior a 9,5 --> \"R\". Caso contrário, é o arredondamento às unidades da Média."]
[]
[5,"Formatar condicionalmente de forma a que as Reprovações apareçam a Vermelho"]
[]
[]
[null,"No final… Ordenar por Nº"]
[]
[null,"Pretende-se que elabore uma Macro que execute os passos de 1 a 5"]
[null,"Experimente a Macro nas restantes turmas."]
[null,"Use uma delas para teste!!!"]
[]
[null,"Nº","T1","T2","T3","Média","Nota Final"]
[null,81707,12.8,"F",12.1]
[null,84577,13,12.1,11.5]
[null,85416,"F",12.7,"F"]
[null,86273,13.2,7.9,12.9]
[null,88980,13.3,"F","F"]
[null,88195,12.1,13.1,12.1]
[null,87849,11.2,11.7,14.2]
[null,83071,18.100000000000001,7.4,13.8]
[null,89111,13.6,19.3,9.8000000000000007]
[null,84162,15.7,14.5,13.5]
[null,83372,"F",14.8,"F"]
[null,89883,"F","F",11.9]
[null,86209,13.5,"F",18.899999999999999]
[null,84101,10.9,11.6,12.9]
[null,87274,10.5,6.6,13.4]
[null,88845,13.2,12.8,"F"]
[null,89200,10.8,12,"F"]
[null,81085,10.4,15.4,"F"]
[null,85493,"F",11,"F"]
[null,83964,11.9,12.2,13.1]
[null,83766,13,12.4,11.6]
[null,83570,13.1,17.100000000000001,14.4]
[null,82243,"F",13,"F"]
[null,80325,12.7,8.1999999999999993,"F"]
[null,89686,"F",12,12.7]
[null,82698,8.1999999999999993,12.7,13.8]
[null,87080,13.6,"F",19.100000000000001]
[null,82327,13,12.6,15.1]
[null,80326,8.1,12.8,11.7]
[null,82519,10.8,13.6,"F"]
[null,85540,10.7,12.6,11.3]
[null,87812,11,"F",10.8]
[null,86905,12.8,13.3,10.7]
[null,87857,13.1,12,12.3]
[null,86700,14.1,11.1,14.8]
[null,80256,14.6,11.6,14.1]
[null,85491,19.8,"F",14.5]
[null,89691,"F",12,14.6]
[null,89037,12.7,13.5,"F"]
[null,81873,12.7,9.4,"F"]
[null,86612,"F",14.4,12.8]
[null,87331,14,13.5,11.2]
[null,83914,3.9,13.6,14.3]
[null,80805,19.5,9.5,14.1]

{"sheet":" 3.3 Macro3 - T3","index":11,"n_rows":64,"n_cols":7,"rows_kept":64,"cut":false,"hidden":false,"merged":[]}
[]
[]
[1,"Transformar os \"F\" em zeros"]
[]
[2,"Calcular a Média dos três testes"]
[]
[3,"Formatar condicionalmente de forma a que as médias positivas apareçam a verde."]
[]
[4,"Calcular a nota final. Média inferior a 9,5 --> \"R\". Caso contrário, é o arredondamento às unidades da Média."]
[]
[5,"Formatar condicionalmente de forma a que as Reprovações apareçam a Vermelho"]
[]
[]
[null,"No final… Ordenar por Nº"]
[]
[null,"Pretende-se que elabore uma Macro que execute os passos de 1 a 5"]
[null,"Experimente a Macro nas restantes turmas."]
[null,"Use uma delas para teste!!!"]
[]
[null,"Nº","T1","T2","T3","Média","Nota Final"]
[null,85026,13.3,14.5,13.8]
[null,88270,10.8,"F",10.8]
[null,82213,14,11.6,14.3]
[null,88418,14.6,15.4,11.3]
[null,87114,13.6,12.1,11.6]
[null,85798,15.7,11.1,12.3]
[null,86552,10.4,12.4,12.1]
[null,84728,"F",12.6,12.9]
[null,83701,"F",11.7,"F"]
[null,85743,13.6,12.2,11.7]
[null,89190,11,19.3,13.4]
[null,86620,13,12.7,"F"]
[null,83117,12.8,8.1999999999999993,14.1]
[null,81013,18.100000000000001,"F",14.6]
[null,80408,19.5,13.6,"F"]
[null,89224,10.7,11.6,"F"]
[null,82172,13.1,13.5,15.1]
[null,82114,13.2,"F",14.1]
[null,83474,3.9,12,"F"]
[null,88047,12.1,12.7,13.5]
[null,84152,10.9,"F",14.8]
[null,88899,13.2,12.8,11.2]
[null,80059,10.8,6.6,14.4]
[null,82391,11.9,14.8,"F"]
[null,86740,11.2,12,"F"]
[null,89513,"F",12,10.7]
[null,85379,13,"F",11.9]
[null,86987,"F",13,11.5]
[null,87645,13.5,13.3,14.2]
[null,82935,13.1,11,12.1]
[null,80834,12.8,9.4,"F"]
[null,82188,"F",12.8,13.8]
[null,80502,19.8,14.4,"F"]
[null,86275,"F",12,"F"]
[null,87953,12.7,"F",13.1]
[null,88683,14.1,9.5,14.5]
[null,86601,10.5,"F",12.8]
[null,87080,12.7,17.100000000000001,12.9]
[null,85256,"F",7.9,9.8000000000000007]
[null,85658,"F",13.6,"F"]
[null,83646,8.1,7.4,19.100000000000001]
[null,87068,13,13.5,18.899999999999999]
[null,80251,8.1999999999999993,13.1,"F"]
[null,84095,12.7,12.6,12.7]

{"sheet":" 3.3 Macro3 - T4","index":12,"n_rows":64,"n_cols":7,"rows_kept":64,"cut":false,"hidden":false,"merged":[]}
[]
[]
[1,"Transformar os \"F\" em zeros"]
[]
[2,"Calcular a Média dos três testes"]
[]
[3,"Formatar condicionalmente de forma a que as médias positivas apareçam a verde."]
[]
[4,"Calcular a nota final. Média inferior a 9,5 --> \"R\". Caso contrário, é o arredondamento às unidades da Média."]
[]
[5,"Formatar condicionalmente de forma a que as Reprovações apareçam a Vermelho"]
[]
[]
[null,"No final… Ordenar por Nº"]
[]
[null,"Pretende-se que elabore uma Macro que execute os passos de 1 a 5"]
[null,"Experimente a Macro nas restantes turmas."]
[null,"Use uma delas para teste!!!"]
[]
[null,"Nº","T1","T2","T3","Média","Nota Final"]
[null,89639,"F",9.5,"F"]
[null,87144,"F",12.7,15.1]
[null,89374,"F",14.4,"F"]
[null,87428,13.3,15.4,13.4]
[null,88869,14,13.5,19.100000000000001]
[null,81834,13.1,6.6,11.7]
[null,80580,"F","F",12.1]
[null,86260,10.9,12.4,13.8]
[null,82033,13.5,13.3,11.6]
[null,83128,18.100000000000001,11.6,9.8000000000000007]
[null,85981,8.1,14.8,12.7]
[null,88380,13.6,"F",18.899999999999999]
[null,81944,12.8,12.1,13.1]
[null,81420,10.7,17.100000000000001,14.5]
[null,82253,13.2,7.4,12.9]
[null,81493,"F",13.6,"F"]
[null,85812,11.2,13.1,11.2]
[null,88630,11.9,11.1,"F"]
[null,87363,13.1,"F",13.8]
[null,83810,14.6,13,"F"]
[null,82952,10.8,12.6,14.8]
[null,85171,12.7,13.6,13.5]
[null,84293,13,14.5,14.6]
[null,89554,12.7,11.6,12.1]
[null,86468,19.5,12,"F"]
[null,84575,12.1,"F","F"]
[null,88766,10.5,8.1999999999999993,14.1]
[null,87808,12.7,11,14.1]
[null,89661,8.1999999999999993,7.9,14.3]
[null,89997,10.8,12.8,11.5]
[null,84020,3.9,13.5,11.3]
[null,85409,11,12,14.2]
[null,86447,"F",12.8,14.4]
[null,81110,13,11.7,"F"]
[null,88835,13,"F","F"]
[null,86040,15.7,12.6,"F"]
[null,80887,13.2,"F",12.3]
[null,83865,12.8,12.2,12.8]
[null,83400,19.8,12,"F"]
[null,84656,"F","F",10.8]
[null,85692,"F",9.4,"F"]
[null,87066,10.4,19.3,12.9]
[null,84577,13.6,12.7,11.9]
[null,80020,14.1,12,10.7]

{"sheet":" 3.3 Macro3 - T5","index":13,"n_rows":64,"n_cols":7,"rows_kept":64,"cut":false,"hidden":false,"merged":[]}
[]
[]
[1,"Transformar os \"F\" em zeros"]
[]
[2,"Calcular a Média dos três testes"]
[]
[3,"Formatar condicionalmente de forma a que as médias positivas apareçam a verde."]
[]
[4,"Calcular a nota final. Média inferior a 9,5 --> \"R\". Caso contrário, é o arredondamento às unidades da Média."]
[]
[5,"Formatar condicionalmente de forma a que as Reprovações apareçam a Vermelho"]
[]
[]
[null,"No final… Ordenar por Nº"]
[]
[null,"Pretende-se que elabore uma Macro que execute os passos de 1 a 5"]
[null,"Experimente a Macro nas restantes turmas."]
[null,"Use uma delas para teste!!!"]
[]
[null,"Nº","T1","T2","T3","Média","Nota Final"]
[null,85777,8.1999999999999993,12.6,"F"]
[null,80817,10.5,"F",14.2]
[null,86009,12.7,"F",11.9]
[null,86112,"F",9.5,12.7]
[null,85122,10.8,6.6,"F"]
[null,84961,12.1,13.1,13.5]
[null,81702,12.7,17.100000000000001,14.4]
[null,81038,13.1,"F",18.899999999999999]
[null,87137,"F",13.5,13.8]
[null,83087,"F",12.2,"F"]
[null,85202,13.6,13.5,"F"]
[null,85607,19.8,7.9,12.1]
[null,82226,"F","F","F"]
[null,86609,14.1,13,14.1]
[null,87391,10.9,11.7,"F"]
[null,81274,13.2,12,13.8]
[null,86299,3.9,13.6,15.1]
[null,88045,12.8,13.3,11.2]
[null,86085,14,12.7,14.3]
[null,88769,11.9,15.4,10.7]
[null,86785,10.4,7.4,14.6]
[null,89592,13,13.6,12.9]
[null,85397,14.6,12,"F"]
[null,80238,12.8,11.6,12.8]
[null,84712,"F",12.8,14.5]
[null,82329,8.1,12.8,"F"]
[null,88539,11.2,11.1,12.9]
[null,80134,13.1,12,"F"]
[null,84673,13.3,9.4,13.4]
[null,89420,19.5,19.3,"F"]
[null,82033,"F",12.7,12.3]
[null,85120,"F",12,"F"]
[null,83728,13.6,"F",9.8000000000000007]
[null,89868,15.7,"F","F"]
[null,82991,10.7,14.8,12.1]
[null,85689,13,11,14.1]
[null,89453,13,12.6,10.8]
[null,82966,"F",11.6,19.100000000000001]
[null,84497,18.100000000000001,"F",14.8]
[null,84740,12.7,14.4,11.6]
[null,89810,11,12.4,13.1]
[null,85673,13.5,12.1,11.3]
[null,83962,10.8,14.5,11.7]
[null,80996,13.2,8.1999999999999993,11.5]